[Event "Late-Titled-Tuesday-Blitz-November-28-2023"]
[Site "Chess.com"]
[Date "2023.11.28"]
[Round "2"]
[White "ChristopherYoo"]
[Black "DefiantChair"]
[Result "1-0"]
[WhiteElo "3040"]
[BlackElo "2612"]
[TimeControl "180+1"]
[EndTime "14:16:16 PST"]
[Termination "ChristopherYoo won by checkmate"]

1. d4 {[%clk 0:03:00.9]} 1... Nf6 {[%clk 0:02:59.4]} 2. c4 {[%clk 0:03:00.3]}
2... e6 {[%clk 0:02:59.9]} 3. Nf3 {[%clk 0:02:59.9]} 3... d5 {[%clk 0:02:59.7]}
4. Nc3 {[%clk 0:02:56.8]} 4... Bb4 {[%clk 0:02:59.4]} 5. Bg5 {[%clk 0:02:35.1]}
5... dxc4 {[%clk 0:02:58.6]} 6. Qa4+ {[%clk 0:02:31.8]} 6... Nc6 {[%clk
0:02:58.3]} 7. e3 {[%clk 0:02:31.2]} 7... Qd5 {[%clk 0:02:39.1]} 8. Bxf6 {[%clk
0:02:30.1]} 8... gxf6 {[%clk 0:02:38.8]} 9. Be2 {[%clk 0:02:30.7]} 9... b5
{[%clk 0:02:34.9]} 10. Qc2 {[%clk 0:02:28.4]} 10... Bb7 {[%clk 0:02:26.2]} 11.
a4 {[%clk 0:02:03]} 11... a6 {[%clk 0:02:17.3]} 12. axb5 {[%clk 0:02:00.4]}
12... axb5 {[%clk 0:02:18.2]} 13. Rxa8+ {[%clk 0:02:00.7]} 13... Bxa8 {[%clk
0:02:19.1]} 14. O-O {[%clk 0:01:55.3]} 14... Bxc3 {[%clk 0:02:16.2]} 15. bxc3
{[%clk 0:01:56.2]} 15... Rg8 {[%clk 0:02:12.9]} 16. e4 {[%clk 0:01:38.1]} 16...
Qd7 {[%clk 0:02:10.8]} 17. Ra1 {[%clk 0:01:37]} 17... Bb7 {[%clk 0:02:10.1]} 18.
Qd2 {[%clk 0:01:20.7]} 18... Nd8 {[%clk 0:02:08.1]} 19. Qf4 {[%clk 0:01:19.5]}
19... Rg6 {[%clk 0:02:03.2]} 20. e5 {[%clk 0:00:49.9]} 20... f5 {[%clk
0:01:26.2]} 21. Nh4 {[%clk 0:00:47.5]} 21... Rg7 {[%clk 0:01:23]} 22. h3 {[%clk
0:00:35.4]} 22... Qc6 {[%clk 0:01:10.7]} 23. Bf3 {[%clk 0:00:34.3]} 23... Qb6
{[%clk 0:01:10.4]} 24. Qh6 {[%clk 0:00:31]} 24... Kf8 {[%clk 0:01:03.5]} 25. d5
{[%clk 0:00:29.4]} 25... Kg8 {[%clk 0:01:00.2]} 26. Qf6 {[%clk 0:00:26.4]} 26...
c5 {[%clk 0:00:51.1]} 27. Nxf5 {[%clk 0:00:23.9]} 27... Rg6 {[%clk 0:00:28.7]}
28. Ne7+ {[%clk 0:00:22.1]} 28... Kf8 {[%clk 0:00:29]} 29. Nxg6+ {[%clk
0:00:22.4]} 29... hxg6 {[%clk 0:00:29.9]} 30. d6 {[%clk 0:00:18]} 30... Bc8
{[%clk 0:00:24.8]} 31. Qh8# {[%clk 0:00:17.4]} 1-0

[Event "Late-Titled-Tuesday-Blitz-November-28-2023"]
[Site "Chess.com"]
[Date "2023.11.28"]
[Round "2"]
[White "Dr_crypt"]
[Black "GAZZAN_3000"]
[Result "0-1"]
[WhiteElo "2368"]
[BlackElo "2663"]
[TimeControl "180+1"]
[EndTime "14:16:18 PST"]
[Termination "GAZZAN_3000 won by resignation"]

1. Nf3 {[%clk 0:02:57.6]} 1... d5 {[%clk 0:02:59.4]} 2. d4 {[%clk 0:02:55.8]}
2... Bg4 {[%clk 0:02:59.6]} 3. Nbd2 {[%clk 0:02:54.5]} 3... Nd7 {[%clk
0:02:58.7]} 4. g3 {[%clk 0:02:53]} 4... e6 {[%clk 0:02:58.6]} 5. Bg2 {[%clk
0:02:53.9]} 5... Ngf6 {[%clk 0:02:58.6]} 6. O-O {[%clk 0:02:54.5]} 6... Bd6
{[%clk 0:02:59]} 7. c4 {[%clk 0:02:54.7]} 7... c6 {[%clk 0:02:58.9]} 8. b3
{[%clk 0:02:52.8]} 8... O-O {[%clk 0:02:59]} 9. Bb2 {[%clk 0:02:53.7]} 9... Re8
{[%clk 0:02:59.2]} 10. Ne5 {[%clk 0:02:51.3]} 10... Bh5 {[%clk 0:02:57.8]} 11.
Re1 {[%clk 0:02:43.1]} 11... Qc7 {[%clk 0:02:57.4]} 12. f4 {[%clk 0:02:37.3]}
12... Ng4 {[%clk 0:02:53.9]} 13. Nxg4 {[%clk 0:02:33.5]} 13... Bxg4 {[%clk
0:02:54.8]} 14. c5 {[%clk 0:02:33.6]} 14... Bf8 {[%clk 0:02:54.1]} 15. Qc2
{[%clk 0:02:31.4]} 15... Bf5 {[%clk 0:02:53.5]} 16. e4 {[%clk 0:02:31.3]} 16...
dxe4 {[%clk 0:02:49.7]} 17. Bxe4 {[%clk 0:02:32.2]} 17... g6 {[%clk 0:02:46.1]}
18. Nf3 {[%clk 0:02:24.1]} 18... Bg7 {[%clk 0:02:42.9]} 19. Bxf5 {[%clk
0:02:23.3]} 19... exf5 {[%clk 0:02:42.7]} 20. Ne5 {[%clk 0:02:24.2]} 20... Nf6
{[%clk 0:02:37.6]} 21. Rad1 {[%clk 0:02:23.9]} 21... Nd5 {[%clk 0:02:37.4]} 22.
a3 {[%clk 0:02:24.4]} 22... Re7 {[%clk 0:02:35]} 23. b4 {[%clk 0:02:22.5]} 23...
Rae8 {[%clk 0:02:35.3]} 24. Qf2 {[%clk 0:02:20.4]} 24... a5 {[%clk 0:02:23.6]}
25. Qd2 {[%clk 0:02:07.4]} 25... axb4 {[%clk 0:02:22.8]} 26. axb4 {[%clk
0:02:08.3]} 26... Re6 {[%clk 0:02:07.4]} 27. Nc4 {[%clk 0:02:07.1]} 27... Qe7
{[%clk 0:02:03.7]} 28. Kf2 {[%clk 0:02:01.5]} 28... Rxe1 {[%clk 0:02:01.3]} 29.
Rxe1 {[%clk 0:02:01.5]} 29... Qxe1+ {[%clk 0:02:01.7]} 30. Qxe1 {[%clk
0:02:01.5]} 30... Rxe1 {[%clk 0:02:02.6]} 31. Kxe1 {[%clk 0:02:01.9]} 31... Nxb4
{[%clk 0:02:03.5]} 32. Kd2 {[%clk 0:02:02.1]} 32... Nd5 {[%clk 0:01:58.5]} 33.
Nd6 {[%clk 0:01:57.5]} 33... b6 {[%clk 0:01:58.5]} 34. cxb6 {[%clk 0:01:48.8]}
34... Nxb6 {[%clk 0:01:59.4]} 35. Kd3 {[%clk 0:01:49.1]} 35... Nd7 {[%clk
0:01:58.4]} 36. Ba3 {[%clk 0:01:46.3]} 36... Bf6 {[%clk 0:01:52.8]} 37. Kc4
{[%clk 0:01:46]} 37... Be7 {[%clk 0:01:49.6]} 38. Bc5 {[%clk 0:01:42.7]} 38...
Bxd6 {[%clk 0:01:47.5]} 39. Bxd6 {[%clk 0:01:42.8]} 39... Kg7 {[%clk 0:01:47.2]}
40. Be5+ {[%clk 0:01:19.3]} 40... f6 {[%clk 0:01:47]} 41. Bd6 {[%clk 0:01:18]}
41... Kf7 {[%clk 0:01:47]} 42. d5 {[%clk 0:01:15.9]} 42... Nb6+ {[%clk
0:01:44.5]} 43. Kc5 {[%clk 0:01:15.7]} 43... Nxd5 {[%clk 0:01:43.1]} 44. Kxc6
{[%clk 0:01:15.7]} 44... Ne3 {[%clk 0:01:43.3]} 45. Bc5 {[%clk 0:01:12]} 45...
Nf1 {[%clk 0:01:43]} 46. Bg1 {[%clk 0:01:12.4]} 46... Ke6 {[%clk 0:01:42]} 47.
Kc5 {[%clk 0:01:11.9]} 47... Nd2 {[%clk 0:01:39.8]} 48. Kc6 {[%clk 0:01:10]}
48... Nf3 {[%clk 0:01:39.4]} 49. Bf2 {[%clk 0:01:06]} 49... Nxh2 {[%clk
0:01:39.4]} 50. Kc5 {[%clk 0:01:06.9]} 50... Ng4 {[%clk 0:01:36.4]} 51. Be1
{[%clk 0:01:05.1]} 51... h5 {[%clk 0:01:34.2]} 52. Kd4 {[%clk 0:01:04.2]} 52...
Nh6 {[%clk 0:01:33]} 53. Bf2 {[%clk 0:01:03.3]} 53... Nf7 {[%clk 0:01:33.2]} 54.
Be1 {[%clk 0:01:02.9]} 54... Nd6 {[%clk 0:01:33.5]} 55. Bf2 {[%clk 0:01:02.7]}
55... Ne4 {[%clk 0:01:33.9]} 56. Be1 {[%clk 0:01:03.3]} 56... g5 {[%clk
0:01:33.9]} 57. Kc4 {[%clk 0:00:56]} 57... g4 {[%clk 0:01:30.8]} 58. Kd4 {[%clk
0:00:55.3]} 58... Kd6 {[%clk 0:01:26]} 59. Kc4 {[%clk 0:00:55.1]} 59... h4
{[%clk 0:01:18.3]} 60. gxh4 {[%clk 0:00:54.8]} 60... g3 {[%clk 0:01:18.5]} 61.
Bxg3 {[%clk 0:00:46.6]} 61... Nxg3 {[%clk 0:01:18.2]} 62. Kd4 {[%clk 0:00:46.6]}
62... Nh5 {[%clk 0:01:18.3]} 0-1

[Event "Late-Titled-Tuesday-Blitz-November-28-2023"]
[Site "Chess.com"]
[Date "2023.11.28"]
[Round "2"]
[White "Sanyura"]
[Black "NCchamp"]
[Result "0-1"]
[WhiteElo "2545"]
[BlackElo "2352"]
[TimeControl "180+1"]
[EndTime "14:16:20 PST"]
[Termination "NCchamp won by resignation"]

1. Nf3 {[%clk 0:01:32.9]} 1... d5 {[%clk 0:02:56.3]} 2. g3 {[%clk 0:01:33.8]}
2... c6 {[%clk 0:02:54.3]} 3. d3 {[%clk 0:01:34.7]} 3... Bg4 {[%clk 0:02:54.3]}
4. Nbd2 {[%clk 0:01:35.6]} 4... Nd7 {[%clk 0:02:52.8]} 5. h3 {[%clk 0:01:35.6]}
5... Bh5 {[%clk 0:02:52.9]} 6. Bg2 {[%clk 0:01:36.2]} 6... e6 {[%clk 0:02:51.5]}
7. O-O {[%clk 0:01:36.7]} 7... Bd6 {[%clk 0:02:51.2]} 8. e4 {[%clk 0:01:36.9]}
8... Ne7 {[%clk 0:02:47.4]} 9. b3 {[%clk 0:01:33.9]} 9... O-O {[%clk 0:02:47]}
10. Bb2 {[%clk 0:01:34.2]} 10... a5 {[%clk 0:02:47.2]} 11. a3 {[%clk 0:01:27.6]}
11... b5 {[%clk 0:02:31.6]} 12. g4 {[%clk 0:01:22.5]} 12... Bg6 {[%clk
0:02:31.6]} 13. h4 {[%clk 0:01:23]} 13... h6 {[%clk 0:02:27.6]} 14. h5 {[%clk
0:01:22.7]} 14... Bh7 {[%clk 0:02:27.8]} 15. g5 {[%clk 0:01:23.3]} 15... hxg5
{[%clk 0:02:28.7]} 16. Nxg5 {[%clk 0:01:24.1]} 16... e5 {[%clk 0:02:11.8]} 17.
Nxh7 {[%clk 0:01:23.4]} 17... Kxh7 {[%clk 0:02:11.8]} 18. Nf3 {[%clk 0:01:17.9]}
18... Ng8 {[%clk 0:02:06.1]} 19. Bc1 {[%clk 0:01:15.3]} 19... Be7 {[%clk
0:02:05]} 20. Qe2 {[%clk 0:01:07.5]} 20... d4 {[%clk 0:02:02.4]} 21. Nh2 {[%clk
0:01:05.6]} 21... Bg5 {[%clk 0:01:57.4]} 22. f4 {[%clk 0:01:05.7]} 22... exf4
{[%clk 0:01:47.2]} 23. Bxf4 {[%clk 0:01:06.6]} 23... Nh6 {[%clk 0:01:46.1]} 24.
Rf2 {[%clk 0:01:00.3]} 24... Bxf4 {[%clk 0:01:38.7]} 25. Rxf4 {[%clk 0:01:01.2]}
25... Ne5 {[%clk 0:01:39.3]} 26. Raf1 {[%clk 0:01:00]} 26... Qg5 {[%clk
0:01:35.7]} 27. Kh1 {[%clk 0:00:41]} 27... c5 {[%clk 0:01:27]} 28. Bh3 {[%clk
0:00:40.4]} 28... c4 {[%clk 0:01:17.3]} 29. Bf5+ {[%clk 0:00:39.9]} 29... Kh8
{[%clk 0:01:17.4]} 30. R4f2 {[%clk 0:00:31.4]} 30... cxd3 {[%clk 0:01:00.4]} 31.
cxd3 {[%clk 0:00:32.3]} 31... Rad8 {[%clk 0:00:55.9]} 32. Re1 {[%clk 0:00:21.7]}
32... Qh4 {[%clk 0:00:49.9]} 33. Rg2 {[%clk 0:00:20.8]} 33... Nxd3 {[%clk
0:00:37.7]} 34. e5 {[%clk 0:00:18.9]} 34... Nxe1 {[%clk 0:00:35.4]} 0-1

[Event "Late-Titled-Tuesday-Blitz-November-28-2023"]
[Site "Chess.com"]
[Date "2023.11.28"]
[Round "2"]
[White "The_Princess_Moon"]
[Black "dianamirza"]
[Result "1-0"]
[WhiteElo "2395"]
[BlackElo "2021"]
[TimeControl "180+1"]
[EndTime "14:16:20 PST"]
[Termination "The_Princess_Moon won by resignation"]

1. e4 {[%clk 0:02:40.7]} 1... c5 {[%clk 0:02:53.9]} 2. Nf3 {[%clk 0:02:39.9]}
2... e6 {[%clk 0:02:54.1]} 3. c3 {[%clk 0:02:39.6]} 3... Nf6 {[%clk 0:02:53.8]}
4. e5 {[%clk 0:02:39.1]} 4... Nd5 {[%clk 0:02:54.3]} 5. d4 {[%clk 0:02:38.9]}
5... cxd4 {[%clk 0:02:52.7]} 6. cxd4 {[%clk 0:02:39.8]} 6... d6 {[%clk
0:02:53.1]} 7. Nc3 {[%clk 0:02:40.3]} 7... dxe5 {[%clk 0:02:42.4]} 8. Nxe5
{[%clk 0:02:39.1]} 8... Bb4 {[%clk 0:02:38.3]} 9. Bd2 {[%clk 0:02:36.1]} 9...
Nxc3 {[%clk 0:02:37.1]} 10. bxc3 {[%clk 0:02:37]} 10... Bd6 {[%clk 0:02:36.4]}
11. Qg4 {[%clk 0:02:35]} 11... O-O {[%clk 0:02:35.5]} 12. Bh6 {[%clk 0:02:31.3]}
12... Qf6 {[%clk 0:02:33.9]} 13. Bg5 {[%clk 0:02:30.1]} 13... Qf5 {[%clk
0:02:27.7]} 14. Qg3 {[%clk 0:02:24.6]} 14... f6 {[%clk 0:02:19.6]} 15. Bh6
{[%clk 0:02:22]} 15... g5 {[%clk 0:02:06.6]} 16. Bd3 {[%clk 0:02:12.4]} 16...
Qf4 {[%clk 0:01:57.9]} 17. Qxf4 {[%clk 0:02:04.5]} 17... gxf4 {[%clk 0:01:58]}
18. Bxf8 {[%clk 0:02:02.6]} 18... Kxf8 {[%clk 0:01:50.7]} 19. Nc4 {[%clk
0:01:57.7]} 19... Bc7 {[%clk 0:01:37.4]} 20. h4 {[%clk 0:01:39.8]} 20... f5
{[%clk 0:01:28.1]} 21. Kd2 {[%clk 0:01:25.9]} 21... b6 {[%clk 0:01:19.7]} 22.
Rhe1 {[%clk 0:01:24.2]} 22... Kf7 {[%clk 0:01:13.4]} 23. Ne5+ {[%clk 0:01:21.4]}
23... Kf6 {[%clk 0:01:09.6]} 24. Bc4 {[%clk 0:01:17.1]} 24... Ba6 {[%clk
0:01:04.8]} 25. Bb3 {[%clk 0:01:08.5]} 25... Bb7 {[%clk 0:00:47.3]} 26. f3
{[%clk 0:01:01.6]} 26... Bd5 {[%clk 0:00:38.7]} 27. Nd3 {[%clk 0:00:43.6]} 27...
Bxb3 {[%clk 0:00:36.8]} 28. axb3 {[%clk 0:00:43.4]} 28... Nd7 {[%clk 0:00:35.5]}
29. Ra6 {[%clk 0:00:34.2]} 29... Nb8 {[%clk 0:00:28.2]} 30. Ra4 {[%clk
0:00:33.2]} 30... Nc6 {[%clk 0:00:28]} 31. Rc4 {[%clk 0:00:27.7]} 31... Na5
{[%clk 0:00:20.2]} 32. Rxc7 {[%clk 0:00:27]} 32... Nxb3+ {[%clk 0:00:20.3]} 33.
Kc2 {[%clk 0:00:26.9]} 33... Na5 {[%clk 0:00:19.1]} 34. Rxh7 {[%clk 0:00:24.2]}
34... Rg8 {[%clk 0:00:18.8]} 35. Nxf4 {[%clk 0:00:23.5]} 1-0

[Event "Late-Titled-Tuesday-Blitz-November-28-2023"]
[Site "Chess.com"]
[Date "2023.11.28"]
[Round "2"]
[White "ploxoi"]
[Black "Charodej1"]
[Result "1-0"]
[WhiteElo "2454"]
[BlackElo "2205"]
[TimeControl "180+1"]
[EndTime "14:16:21 PST"]
[Termination "ploxoi won by resignation"]

1. c4 {[%clk 0:03:00.9]} 1... e5 {[%clk 0:02:59.6]} 2. g3 {[%clk 0:03:00]} 2...
Nf6 {[%clk 0:02:59.4]} 3. Bg2 {[%clk 0:03:00.3]} 3... d5 {[%clk 0:02:59.6]} 4.
cxd5 {[%clk 0:03:00.8]} 4... Nxd5 {[%clk 0:03:00.5]} 5. Nf3 {[%clk 0:03:01.4]}
5... Nc6 {[%clk 0:03:00.4]} 6. d3 {[%clk 0:02:57.1]} 6... Be7 {[%clk 0:03:00.1]}
7. O-O {[%clk 0:02:57.6]} 7... O-O {[%clk 0:03:00.2]} 8. a3 {[%clk 0:02:58.5]}
8... a5 {[%clk 0:02:58.9]} 9. Qc2 {[%clk 0:02:58.7]} 9... Be6 {[%clk 0:02:52.1]}
10. Nc3 {[%clk 0:02:58.1]} 10... Nb6 {[%clk 0:02:42]} 11. Be3 {[%clk 0:02:56.7]}
11... f5 {[%clk 0:02:29.1]} 12. Na4 {[%clk 0:02:48.2]} 12... Nxa4 {[%clk
0:02:05.9]} 13. Qxa4 {[%clk 0:02:49.1]} 13... Bf6 {[%clk 0:01:58]} 14. Qb5
{[%clk 0:02:45.2]} 14... Qd5 {[%clk 0:01:04.9]} 15. Qxd5 {[%clk 0:02:34.2]}
15... Bxd5 {[%clk 0:01:05]} 16. Rab1 {[%clk 0:02:30.3]} 16... a4 {[%clk
0:01:01.4]} 17. Nd2 {[%clk 0:02:24.5]} 17... Rfd8 {[%clk 0:01:00.7]} 18. Bxd5+
{[%clk 0:02:18.1]} 18... Rxd5 {[%clk 0:01:00.6]} 19. Rbc1 {[%clk 0:02:19]} 19...
Bd8 {[%clk 0:00:49.2]} 20. Rc2 {[%clk 0:02:17.5]} 20... Nd4 {[%clk 0:00:49]} 21.
Bxd4 {[%clk 0:02:16.9]} 21... exd4 {[%clk 0:00:46.8]} 22. Rfc1 {[%clk
0:02:17.1]} 22... c6 {[%clk 0:00:47.1]} 23. Nf3 {[%clk 0:02:14.1]} 23... Bf6
{[%clk 0:00:46.7]} 24. Rc5 {[%clk 0:02:14.3]} 24... Rad8 {[%clk 0:00:44.9]} 25.
Rxd5 {[%clk 0:02:13.4]} 25... Rxd5 {[%clk 0:00:45]} 26. Rc4 {[%clk 0:02:14.3]}
26... Rb5 {[%clk 0:00:41]} 27. Rc2 {[%clk 0:02:14.9]} 27... Kf7 {[%clk
0:00:38.6]} 28. Kf1 {[%clk 0:02:15.5]} 28... Ke6 {[%clk 0:00:38.4]} 29. Ke1
{[%clk 0:02:16.2]} 29... Kd5 {[%clk 0:00:38.7]} 30. Kd1 {[%clk 0:02:16.9]} 30...
Ra5 {[%clk 0:00:35.8]} 31. Nd2 {[%clk 0:02:17.2]} 31... b5 {[%clk 0:00:35.6]}
32. Nf3 {[%clk 0:02:02.8]} 32... Ra8 {[%clk 0:00:34.5]} 33. h4 {[%clk
0:02:03.3]} 33... g6 {[%clk 0:00:33]} 34. Ne1 {[%clk 0:02:03.6]} 34... h6 {[%clk
0:00:32.4]} 35. Ng2 {[%clk 0:02:04.2]} 35... g5 {[%clk 0:00:32.6]} 36. h5 {[%clk
0:02:03.8]} 36... Be5 {[%clk 0:00:31.6]} 37. Kd2 {[%clk 0:02:01]} 37... Bd6
{[%clk 0:00:31.5]} 38. Ne1 {[%clk 0:01:58.3]} 38... b4 {[%clk 0:00:28.8]} 39.
Rc4 {[%clk 0:01:52.9]} 39... bxa3 {[%clk 0:00:28.9]} 40. bxa3 {[%clk 0:01:53.8]}
40... Bxa3 {[%clk 0:00:28.7]} 41. Nc2 {[%clk 0:01:47.9]} 41... Bb2 {[%clk
0:00:28.7]} 42. Nb4+ {[%clk 0:01:48.5]} 42... Ke5 {[%clk 0:00:23.3]} 43. Nxc6+
{[%clk 0:01:47.9]} 43... Kd6 {[%clk 0:00:22]} 44. Nxd4 {[%clk 0:01:47.2]} 44...
a3 {[%clk 0:00:20.6]} 45. Nb5+ {[%clk 0:01:28.1]} 45... Ke6 {[%clk 0:00:17.8]}
46. Nc7+ {[%clk 0:01:19.4]} 46... Kd7 {[%clk 0:00:17.4]} 47. Nxa8 {[%clk
0:01:20.3]} 47... a2 {[%clk 0:00:18.3]} 48. Ra4 {[%clk 0:01:20.8]} 48... a1=Q
{[%clk 0:00:18.6]} 49. Rxa1 {[%clk 0:01:21.7]} 49... Bxa1 {[%clk 0:00:19.2]} 50.
Nb6+ {[%clk 0:01:22.4]} 50... Kc6 {[%clk 0:00:19.4]} 51. Nc4 {[%clk 0:01:22.1]}
51... Bf6 {[%clk 0:00:19.3]} 52. e4 {[%clk 0:01:21]} 52... fxe4 {[%clk
0:00:19.4]} 53. dxe4 {[%clk 0:01:21.6]} 53... Kc5 {[%clk 0:00:20.3]} 54. Kd3
{[%clk 0:01:22]} 54... Ba1 {[%clk 0:00:19.7]} 55. Ne3 {[%clk 0:01:21.8]} 55...
Bg7 {[%clk 0:00:18.6]} 56. Nf5 {[%clk 0:01:21.9]} 56... Bf8 {[%clk 0:00:19.5]}
57. f4 {[%clk 0:01:22.3]} 57... gxf4 {[%clk 0:00:17.9]} 58. gxf4 {[%clk
0:01:23.2]} 58... Kc6 {[%clk 0:00:17.1]} 59. e5 {[%clk 0:01:23.9]} 59... Kd7
{[%clk 0:00:17.4]} 60. Ke4 {[%clk 0:01:23.9]} 60... Ke6 {[%clk 0:00:18.3]} 61.
Nd4+ {[%clk 0:01:24.3]} 61... Kf7 {[%clk 0:00:17.6]} 62. f5 {[%clk 0:01:25.2]}
1-0

[Event "Late-Titled-Tuesday-Blitz-November-28-2023"]
[Site "Chess.com"]
[Date "2023.11.28"]
[Round "2"]
[White "Statham_l3"]
[Black "IlyaGrigorjev"]
[Result "0-1"]
[WhiteElo "2553"]
[BlackElo "2900"]
[TimeControl "180+1"]
[EndTime "14:16:25 PST"]
[Termination "IlyaGrigorjev won on time"]

1. e4 {[%clk 0:03:00.9]} 1... e5 {[%clk 0:02:59]} 2. Nf3 {[%clk 0:03:00.6]} 2...
Nc6 {[%clk 0:02:59.6]} 3. c3 {[%clk 0:03:00.4]} 3... d5 {[%clk 0:02:59.1]} 4.
Bb5 {[%clk 0:02:59.9]} 4... f6 {[%clk 0:02:22.5]} 5. Qe2 {[%clk 0:02:42.2]} 5...
a6 {[%clk 0:02:14.8]} 6. Ba4 {[%clk 0:02:39.7]} 6... dxe4 {[%clk 0:01:55.1]} 7.
Qxe4 {[%clk 0:02:37.6]} 7... Ne7 {[%clk 0:01:55.8]} 8. d4 {[%clk 0:02:35]} 8...
Bf5 {[%clk 0:01:54.9]} 9. Qe2 {[%clk 0:02:22.1]} 9... b5 {[%clk 0:01:55]} 10.
Bb3 {[%clk 0:02:21.4]} 10... exd4 {[%clk 0:01:55.3]} 11. cxd4 {[%clk 0:02:06.5]}
11... Nxd4 {[%clk 0:01:53]} 12. Nxd4 {[%clk 0:02:05.7]} 12... Qxd4 {[%clk
0:01:53.9]} 13. O-O {[%clk 0:01:57.3]} 13... O-O-O {[%clk 0:01:44.1]} 14. Rd1
{[%clk 0:01:39.1]} 14... Qe5 {[%clk 0:01:42.8]} 15. Rxd8+ {[%clk 0:01:34.9]}
15... Kxd8 {[%clk 0:01:43.7]} 16. Be3 {[%clk 0:01:32.1]} 16... Nd5 {[%clk
0:01:18.9]} 17. Bxd5 {[%clk 0:01:17.9]} 17... Qxd5 {[%clk 0:01:18.4]} 18. Nc3
{[%clk 0:01:18.2]} 18... Qc6 {[%clk 0:01:16.2]} 19. a4 {[%clk 0:00:50.4]} 19...
b4 {[%clk 0:01:11.1]} 20. Nd5 {[%clk 0:00:45.3]} 20... Bd6 {[%clk 0:01:11]} 21.
Rd1 {[%clk 0:00:41.5]} 21... b3 {[%clk 0:01:10.7]} 22. Nb4 {[%clk 0:00:23.6]}
22... Qxa4 {[%clk 0:01:05.6]} 23. Qc4 {[%clk 0:00:19.7]} 23... Qb5 {[%clk
0:00:47.2]} 24. Nc6+ {[%clk 0:00:14.9]} 24... Kd7 {[%clk 0:00:46.2]} 25. Qxb5
{[%clk 0:00:02.6]} 25... axb5 {[%clk 0:00:47.1]} 26. Nd4 {[%clk 0:00:03.2]}
26... Bc2 {[%clk 0:00:47.6]} 27. Rd2 {[%clk 0:00:02.6]} 27... Ra8 {[%clk
0:00:46.2]} 28. g3 {[%clk 0:00:02]} 28... Be4 {[%clk 0:00:44.7]} 29. f3 {[%clk
0:00:01.3]} 29... Bd5 {[%clk 0:00:38.1]} 30. Nxb3 {[%clk 0:00:01.6]} 30... Bxb3
{[%clk 0:00:38.1]} 0-1

[Event "Late-Titled-Tuesday-Blitz-November-28-2023"]
[Site "Chess.com"]
[Date "2023.11.28"]
[Round "2"]
[White "picturesquecheck"]
[Black "NateSolon"]
[Result "1-0"]
[WhiteElo "2378"]
[BlackElo "2667"]
[TimeControl "180+1"]
[EndTime "14:16:26 PST"]
[Termination "picturesquecheck won by resignation"]

1. e4 {[%clk 0:03:00.9]} 1... c5 {[%clk 0:02:59.7]} 2. Nf3 {[%clk 0:03:00.9]}
2... Nf6 {[%clk 0:02:59.8]} 3. e5 {[%clk 0:02:58.4]} 3... Nd5 {[%clk 0:03:00]}
4. c3 {[%clk 0:02:59.1]} 4... d6 {[%clk 0:02:59.7]} 5. exd6 {[%clk 0:02:58.2]}
5... e6 {[%clk 0:02:59.4]} 6. g3 {[%clk 0:02:56.8]} 6... Bxd6 {[%clk 0:02:58.5]}
7. Bg2 {[%clk 0:02:57.3]} 7... O-O {[%clk 0:02:58.1]} 8. d4 {[%clk 0:02:57.5]}
8... cxd4 {[%clk 0:02:54.9]} 9. Nxd4 {[%clk 0:02:56]} 9... Nd7 {[%clk
0:02:16.9]} 10. O-O {[%clk 0:02:54.1]} 10... N7f6 {[%clk 0:02:17.1]} 11. c4
{[%clk 0:02:47.7]} 11... Ne7 {[%clk 0:02:11.2]} 12. b3 {[%clk 0:02:46.9]} 12...
a6 {[%clk 0:02:08.7]} 13. Bb2 {[%clk 0:02:40.2]} 13... Ng6 {[%clk 0:02:02.9]}
14. Nc3 {[%clk 0:02:38.2]} 14... Qc7 {[%clk 0:01:56.1]} 15. Re1 {[%clk
0:02:37.4]} 15... Bd7 {[%clk 0:01:55.5]} 16. Qc2 {[%clk 0:02:35.9]} 16... Rad8
{[%clk 0:01:50.7]} 17. Rad1 {[%clk 0:02:34.2]} 17... Rfe8 {[%clk 0:01:48.6]} 18.
h4 {[%clk 0:02:19.9]} 18... Bc5 {[%clk 0:01:42.1]} 19. a3 {[%clk 0:02:00.8]}
19... Ba7 {[%clk 0:01:41]} 20. Nce2 {[%clk 0:01:48]} 20... e5 {[%clk 0:01:35.6]}
21. Nf5 {[%clk 0:01:43.3]} 21... Ng4 {[%clk 0:01:26.9]} 22. Rf1 {[%clk 0:01:28]}
22... h5 {[%clk 0:01:06.7]} 23. Nd6 {[%clk 0:01:03.3]} 23... Re6 {[%clk
0:00:55.9]} 24. Ne4 {[%clk 0:01:03.5]} 24... Bc6 {[%clk 0:00:49.7]} 25. b4
{[%clk 0:01:00.4]} 25... Rxd1 {[%clk 0:00:47.5]} 26. Qxd1 {[%clk 0:00:58.3]}
26... Bxe4 {[%clk 0:00:44.1]} 27. Bxe4 {[%clk 0:00:58.2]} 27... Rf6 {[%clk
0:00:44.7]} 28. c5 {[%clk 0:00:54.2]} 28... b6 {[%clk 0:00:40.5]} 29. Bxg6
{[%clk 0:00:51.8]} 29... Rxg6 {[%clk 0:00:38.2]} 30. Nc3 {[%clk 0:00:36.3]}
30... bxc5 {[%clk 0:00:36.2]} 31. Nd5 {[%clk 0:00:36.5]} 31... Qb7 {[%clk
0:00:33.8]} 32. Qf3 {[%clk 0:00:29.9]} 32... Qd7 {[%clk 0:00:20.4]} 33. Rd1
{[%clk 0:00:24.8]} 33... Qe6 {[%clk 0:00:18.8]} 34. Nc7 {[%clk 0:00:23.2]} 34...
Qc6 {[%clk 0:00:18.6]} 35. Nd5 {[%clk 0:00:21.4]} 35... Qe6 {[%clk 0:00:17.6]}
36. Nc7 {[%clk 0:00:21.7]} 36... Qc6 {[%clk 0:00:17.8]} 37. Nd5 {[%clk 0:00:22]}
37... Qb7 {[%clk 0:00:17]} 38. Nf6+ {[%clk 0:00:21.1]} 1-0